[Event "Titled Tuesday Blitz January 31 Late 2023"]
[White "Dzierzak, Radoslaw"]
[Black "kiwibobo"]
[WhiteFideId "1161407"]
[WhiteElo "2220"]
[BlackElo "2087"]
[Result "1-0"]
[Round "02"]
[TimeControl "180+2"]
[Date "2023.01.31"]
[WhiteClock "0:00:43"]
[BlackClock "0:00:07"]

1. e4 {[%clk 0:03:00]}  e5 {[%clk 0:02:59]} 2. Nf3 {[%clk 0:03:00]}  Nc6 {[%clk 0:02:59]} 3. Bc4 {[%clk 0:03:00]}  Nf6 {[%clk 0:02:59]} 4. d3 {[%clk 0:02:59]}  Bc5 {[%clk 0:02:59]} 5. O-O {[%clk 0:02:59]}  d6 {[%clk 0:02:59]} 6. c3 {[%clk 0:02:59]}  a6 {[%clk 0:02:59]} 7. Bb3 {[%clk 0:02:59]}  Ba7 {[%clk 0:02:59]} 8. Re1 {[%clk 0:02:56]}  h6 {[%clk 0:02:59]} 9. Nbd2 {[%clk 0:02:54]}  O-O {[%clk 0:02:58]} 10. h3 {[%clk 0:02:53]}  Re8 {[%clk 0:02:58]} 11. Nf1 {[%clk 0:02:53]}  Be6 {[%clk 0:02:59]} 12. Bc2 {[%clk 0:02:53]}  d5 {[%clk 0:02:57]} 13. Ng3 {[%clk 0:02:49]}  d4 {[%clk 0:02:51]} 14. c4 {[%clk 0:02:38]}  Nb4 {[%clk 0:02:43]} 15. a3 {[%clk 0:02:37]}  Nxc2 {[%clk 0:02:41]} 16. Qxc2 {[%clk 0:02:38]}  Nd7 {[%clk 0:02:34]} 17. b4 {[%clk 0:02:36]}  a5 {[%clk 0:02:27]} 18. Bd2 {[%clk 0:02:33]}  axb4 {[%clk 0:02:25]} 19. axb4 {[%clk 0:02:34]}  c5 {[%clk 0:02:25]} 20. b5 {[%clk 0:02:33]}  Bb6 {[%clk 0:02:24]} 21. Rxa8 {[%clk 0:02:29]}  Qxa8 {[%clk 0:02:25]} 22. Qb2 {[%clk 0:02:28]}  Qd8 {[%clk 0:02:16]} 23. Ra1 {[%clk 0:02:27]}  Qc7 {[%clk 0:02:09]} 24. Ra3 {[%clk 0:02:22]}  f6 {[%clk 0:02:01]} 25. Qa1 {[%clk 0:02:21]}  Nf8 {[%clk 0:02:00]} 26. Ra8 {[%clk 0:02:18]}  Rxa8 {[%clk 0:01:59]} 27. Qxa8 {[%clk 0:02:19]}  Qc8 {[%clk 0:01:59]} 28. Qa3 {[%clk 0:02:16]}  Ng6 {[%clk 0:01:55]} 29. Kh2 {[%clk 0:02:14]}  Ne7 {[%clk 0:01:48]} 30. Ne2 {[%clk 0:02:04]}  g5 {[%clk 0:01:44]} 31. Nc1 {[%clk 0:01:55]}  Ng6 {[%clk 0:01:43]} 32. Nb3 {[%clk 0:01:52]}  Nf4 {[%clk 0:01:43]} 33. Bxf4 {[%clk 0:01:50]}  gxf4 {[%clk 0:01:36]} 34. Qa1 {[%clk 0:01:31]}  Kf7 {[%clk 0:01:33]} 35. Nh4 {[%clk 0:01:28]}  Qd8 {[%clk 0:01:25]} 36. Qd1 {[%clk 0:01:26]}  Qe8 {[%clk 0:00:54]} 37. Qh5+ {[%clk 0:01:24]}  Ke7 {[%clk 0:00:54]} 38. Qxh6 {[%clk 0:01:24]}  Qf7 {[%clk 0:00:50]} 39. Ng6+ {[%clk 0:01:14]}  Kd6 {[%clk 0:00:45]} 40. Nd2 {[%clk 0:01:12]}  Kc7 {[%clk 0:00:40]} 41. Nf8 {[%clk 0:00:59]}  Bc8 {[%clk 0:00:24]} 42. Nh7 {[%clk 0:00:58]}  f5 {[%clk 0:00:18]} 43. Nf6 {[%clk 0:00:49]}  Be6 {[%clk 0:00:13]} 44. exf5 {[%clk 0:00:47]}  Bxf5 {[%clk 0:00:07]} 45. Nd5+ {[%clk 0:00:47]}  Kb8 {[%clk 0:00:07]} 46. Qxb6 {[%clk 0:00:44]}  Bxd3 {[%clk 0:00:07]} 47. Qd8+ {[%clk 0:00:42]}  Ka7 {[%clk 0:00:07]} 48. b6+ {[%clk 0:00:42]}  Ka6 {[%clk 0:00:07]} 49. Qa8# {[%clk 0:00:43]} 1-0


[Site "https://www.chess.com"]

[Event "Titled Tuesday Blitz January 31 Late 2023"]
[White "Levine, David"]
[Black "Necromon"]
[WhiteFideId "2011611"]
[WhiteElo "2040"]
[BlackElo "2420"]
[Result "0-1"]
[Round "02"]
[TimeControl "180+2"]
[Date "2023.01.31"]
[WhiteClock "0:00:41"]
[BlackClock "0:02:07"]

1. d4 {[%clk 0:02:59]}  d5 {[%clk 0:02:58]} 2. c4 {[%clk 0:02:59]}  c6 {[%clk 0:02:58]} 3. Nf3 {[%clk 0:02:59]}  Nf6 {[%clk 0:02:58]} 4. Nc3 {[%clk 0:02:58]}  e6 {[%clk 0:02:58]} 5. g3 {[%clk 0:02:57]}  Be7 {[%clk 0:02:52]} 6. Bg2 {[%clk 0:02:57]}  O-O {[%clk 0:02:52]} 7. O-O {[%clk 0:02:57]}  Nbd7 {[%clk 0:02:52]} 8. Qd3 {[%clk 0:02:49]}  Rb8 {[%clk 0:02:51]} 9. e4 {[%clk 0:02:48]}  dxe4 {[%clk 0:02:50]} 10. Nxe4 {[%clk 0:02:48]}  Nxe4 {[%clk 0:02:50]} 11. Qxe4 {[%clk 0:02:48]}  Nf6 {[%clk 0:02:50]} 12. Qc2 {[%clk 0:02:48]}  c5 {[%clk 0:02:49]} 13. Rd1 {[%clk 0:02:43]}  Qb6 {[%clk 0:02:42]} 14. b3 {[%clk 0:02:39]}  cxd4 {[%clk 0:02:41]} 15. Nxd4 {[%clk 0:02:39]}  Rd8 {[%clk 0:02:39]} 16. Bf4 {[%clk 0:02:16]}  Ra8 {[%clk 0:02:27]} 17. Nf3 {[%clk 0:01:59]}  Bd7 {[%clk 0:02:24]} 18. Ne5 {[%clk 0:01:55]}  Be8 {[%clk 0:02:24]} 19. h3 {[%clk 0:01:46]}  Rxd1+ {[%clk 0:02:23]} 20. Rxd1 {[%clk 0:01:46]}  Rd8 {[%clk 0:02:24]} 21. Rxd8 {[%clk 0:01:42]}  Bxd8 {[%clk 0:02:24]} 22. c5 {[%clk 0:01:40]}  Qa5 {[%clk 0:02:20]} 23. c6 {[%clk 0:01:34]}  bxc6 {[%clk 0:02:15]} 24. Nxc6 {[%clk 0:01:22]}  Qe1+ {[%clk 0:02:14]} 25. Kh2 {[%clk 0:01:21]}  Bb6 {[%clk 0:02:14]} 26. Ne7+ {[%clk 0:01:02]}  Kh8 {[%clk 0:02:10]} 27. Nc8 {[%clk 0:00:49]}  Bxf2 {[%clk 0:02:08]} 28. Nd6 {[%clk 0:00:41]}  Qg1# {[%clk 0:02:07]} 0-1


[Site "https://www.chess.com"]

[Event "Titled Tuesday Blitz January 31 Late 2023"]
[White "Battlecruiser_Operational"]
[Black "Desideri, Ricardo Maruchi"]
[BlackFideId "2110440"]
[WhiteElo "2419"]
[BlackElo "1959"]
[Result "1-0"]
[Round "02"]
[TimeControl "180+2"]
[Date "2023.01.31"]
[WhiteClock "0:00:13"]
[BlackClock "0:00:02"]

1. d4 {[%clk 0:02:59]}  Nf6 {[%clk 0:02:59]} 2. Nf3 {[%clk 0:02:59]}  g6 {[%clk 0:02:53]} 3. g3 {[%clk 0:02:55]}  Bg7 {[%clk 0:02:54]} 4. Bg2 {[%clk 0:02:55]}  O-O {[%clk 0:02:53]} 5. O-O {[%clk 0:02:54]}  c5 {[%clk 0:02:51]} 6. d5 {[%clk 0:02:53]}  d6 {[%clk 0:02:51]} 7. Nc3 {[%clk 0:02:49]}  e6 {[%clk 0:02:47]} 8. dxe6 {[%clk 0:02:43]}  Bxe6 {[%clk 0:02:46]} 9. Ng5 {[%clk 0:02:41]}  Nc6 {[%clk 0:02:44]} 10. Nxe6 {[%clk 0:02:39]}  fxe6 {[%clk 0:02:44]} 11. e4 {[%clk 0:02:26]}  a6 {[%clk 0:02:32]} 12. a4 {[%clk 0:02:25]}  Qc7 {[%clk 0:02:31]} 13. Bf4 {[%clk 0:02:22]}  Rad8 {[%clk 0:02:30]} 14. Qd2 {[%clk 0:02:14]}  Rf7 {[%clk 0:02:26]} 15. Rad1 {[%clk 0:02:13]}  Rfd7 {[%clk 0:02:23]} 16. h4 {[%clk 0:02:00]}  Nd4 {[%clk 0:02:17]} 17. Ne2 {[%clk 0:01:46]}  Nh5 {[%clk 0:02:11]} 18. Bg5 {[%clk 0:01:43]}  Rc8 {[%clk 0:01:53]} 19. c3 {[%clk 0:01:38]}  Nxe2+ {[%clk 0:01:29]} 20. Qxe2 {[%clk 0:01:38]}  h6 {[%clk 0:01:27]} 21. Be3 {[%clk 0:01:34]}  Nf6 {[%clk 0:01:25]} 22. Bf4 {[%clk 0:01:13]}  e5 {[%clk 0:01:22]} 23. Be3 {[%clk 0:01:10]}  Kh7 {[%clk 0:01:21]} 24. Bh3 {[%clk 0:01:08]}  Nxe4 {[%clk 0:01:09]} 25. Bxd7 {[%clk 0:01:07]}  Qxd7 {[%clk 0:01:06]} 26. Bxh6 {[%clk 0:00:55]}  Nxc3 {[%clk 0:00:52]} 27. bxc3 {[%clk 0:00:52]}  Bxh6 {[%clk 0:00:52]} 28. Qxe5 {[%clk 0:00:45]}  Qxa4 {[%clk 0:00:19]} 29. Qe7+ {[%clk 0:00:35]}  Bg7 {[%clk 0:00:19]} 30. Rxd6 {[%clk 0:00:32]}  Qc4 {[%clk 0:00:13]} 31. Rd7 {[%clk 0:00:24]}  Qxc3 {[%clk 0:00:13]} 32. Rxb7 {[%clk 0:00:23]}  Rg8 {[%clk 0:00:09]} 33. Rd1 {[%clk 0:00:22]}  a5 {[%clk 0:00:08]} 34. Rdd7 {[%clk 0:00:16]}  a4 {[%clk 0:00:07]} 35. Qg5 {[%clk 0:00:13]}  a3 {[%clk 0:00:06]} 36. Ra7 {[%clk 0:00:13]}  Qb2 {[%clk 0:00:04]} 37. h5 {[%clk 0:00:13]}  gxh5 {[%clk 0:00:02]} 38. Qxh5# {[%clk 0:00:13]} 1-0


[Site "https://www.chess.com"]

[Event "Titled Tuesday Blitz January 31 Late 2023"]
[White "So, Wesley"]
[Black "Yanchenko, Roman"]
[WhiteFideId "5202213"]
[BlackFideId "4137329"]
[WhiteElo "2760"]
[BlackElo "2466"]
[Result "0-1"]
[Round "03"]
[TimeControl "180+2"]
[Date "2023.01.31"]
[WhiteClock "0:00:37"]
[BlackClock "0:00:44"]

1. e4 {[%clk 0:03:00]}  e6 {[%clk 0:03:00]} 2. d4 {[%clk 0:03:00]}  d5 {[%clk 0:03:00]} 3. Nc3 {[%clk 0:03:01]}  Bb4 {[%clk 0:03:00]} 4. e5 {[%clk 0:03:00]}  Ne7 {[%clk 0:03:01]} 5. a3 {[%clk 0:02:59]}  Bxc3+ {[%clk 0:03:01]} 6. bxc3 {[%clk 0:03:00]}  b6 {[%clk 0:03:02]} 7. Qg4 {[%clk 0:02:58]}  Kf8 {[%clk 0:03:03]} 8. h4 {[%clk 0:02:58]}  Ba6 {[%clk 0:03:03]} 9. Bxa6 {[%clk 0:02:54]}  Nxa6 {[%clk 0:03:03]} 10. h5 {[%clk 0:02:55]}  h6 {[%clk 0:03:02]} 11. Ne2 {[%clk 0:02:52]}  c5 {[%clk 0:03:01]} 12. O-O {[%clk 0:02:47]}  Kg8 {[%clk 0:02:59]} 13. a4 {[%clk 0:02:47]}  Rc8 {[%clk 0:02:59]} 14. Ng3 {[%clk 0:02:29]}  cxd4 {[%clk 0:02:57]} 15. cxd4 {[%clk 0:02:30]}  Nb4 {[%clk 0:02:57]} 16. c3 {[%clk 0:01:59]}  Rxc3 {[%clk 0:02:47]} 17. Bd2 {[%clk 0:01:59]}  Rc4 {[%clk 0:02:47]} 18. Bxb4 {[%clk 0:01:57]}  Rxb4 {[%clk 0:02:48]} 19. Rfb1 {[%clk 0:01:56]}  Rxb1+ {[%clk 0:02:33]} 20. Rxb1 {[%clk 0:01:57]}  Kh7 {[%clk 0:02:34]} 21. a5 {[%clk 0:01:52]}  Qd7 {[%clk 0:01:55]} 22. Qf3 {[%clk 0:01:38]}  Nf5 {[%clk 0:01:46]} 23. Nxf5 {[%clk 0:01:32]}  exf5 {[%clk 0:01:46]} 24. axb6 {[%clk 0:01:33]}  Rb8 {[%clk 0:01:46]} 25. b7 {[%clk 0:01:31]}  a5 {[%clk 0:01:12]} 26. Qb3 {[%clk 0:01:25]}  a4 {[%clk 0:01:12]} 27. Qb4 {[%clk 0:01:24]}  a3 {[%clk 0:01:06]} 28. Qxa3 {[%clk 0:01:22]}  Rxb7 {[%clk 0:01:06]} 29. Rxb7 {[%clk 0:01:18]}  Qxb7 {[%clk 0:01:07]} 30. Qd3 {[%clk 0:01:18]}  Qc8 {[%clk 0:01:00]} 31. g4 {[%clk 0:01:08]}  g6 {[%clk 0:01:00]} 32. hxg6+ {[%clk 0:01:06]}  Kxg6 {[%clk 0:01:00]} 33. Kg2 {[%clk 0:00:56]}  Kg5 {[%clk 0:00:58]} 34. Qd2+ {[%clk 0:00:41]}  f4 {[%clk 0:00:53]} 35. f3 {[%clk 0:00:41]}  Qc4 {[%clk 0:00:50]} 36. Qf2 {[%clk 0:00:40]}  Qc1 {[%clk 0:00:43]} 37. Kh3 {[%clk 0:00:39]}  Qh1+ {[%clk 0:00:43]} 38. Qh2 {[%clk 0:00:37]}  Qxf3+ {[%clk 0:00:43]} 39. Qg3 {[%clk 0:00:37]}  Qxg3# {[%clk 0:00:44]} 0-1


[Site "https://www.chess.com"]

[Event "Titled Tuesday Blitz January 31 Late 2023"]
[White "Tactrics"]
[Black "Yu, Yangyi"]
[BlackFideId "8603820"]
[WhiteElo "2794"]
[BlackElo "2729"]
[Result "0-1"]
[Round "03"]
[TimeControl "180+2"]
[Date "2023.01.31"]
[WhiteClock "0:00:08"]
[BlackClock "0:00:06"]

1. e4 {[%clk 0:03:00]}  c5 {[%clk 0:02:57]} 2. Nf3 {[%clk 0:03:01]}  Nc6 {[%clk 0:02:55]} 3. Bb5 {[%clk 0:03:01]}  e6 {[%clk 0:02:52]} 4. Bxc6 {[%clk 0:03:01]}  bxc6 {[%clk 0:02:53]} 5. O-O {[%clk 0:03:00]}  Qc7 {[%clk 0:02:53]} 6. Re1 {[%clk 0:02:53]}  Ne7 {[%clk 0:02:50]} 7. c3 {[%clk 0:02:52]}  Ng6 {[%clk 0:02:46]} 8. d4 {[%clk 0:02:50]}  d5 {[%clk 0:02:31]} 9. Nbd2 {[%clk 0:02:44]}  cxd4 {[%clk 0:02:29]} 10. Nxd4 {[%clk 0:02:43]}  Be7 {[%clk 0:02:22]} 11. c4 {[%clk 0:02:34]}  e5 {[%clk 0:02:06]} 12. Nf5 {[%clk 0:02:28]}  O-O {[%clk 0:01:49]} 13. Nxe7+ {[%clk 0:02:17]}  Qxe7 {[%clk 0:01:48]} 14. cxd5 {[%clk 0:02:06]}  cxd5 {[%clk 0:01:49]} 15. exd5 {[%clk 0:02:07]}  Bb7 {[%clk 0:01:46]} 16. Nc4 {[%clk 0:01:55]}  Rfd8 {[%clk 0:01:40]} 17. d6 {[%clk 0:01:45]}  Qe6 {[%clk 0:01:39]} 18. b3 {[%clk 0:01:45]}  Bd5 {[%clk 0:01:14]} 19. Qe2 {[%clk 0:01:38]}  Bxc4 {[%clk 0:01:06]} 20. Qxc4 {[%clk 0:01:39]}  Qxc4 {[%clk 0:00:56]} 21. bxc4 {[%clk 0:01:39]}  Rxd6 {[%clk 0:00:56]} 22. Be3 {[%clk 0:01:39]}  Rc6 {[%clk 0:00:55]} 23. Rec1 {[%clk 0:01:33]}  Ne7 {[%clk 0:00:49]} 24. f3 {[%clk 0:01:21]}  Nf5 {[%clk 0:00:46]} 25. Bf2 {[%clk 0:01:21]}  h5 {[%clk 0:00:43]} 26. a4 {[%clk 0:01:16]}  a6 {[%clk 0:00:39]} 27. Rab1 {[%clk 0:01:11]}  Rac8 {[%clk 0:00:39]} 28. c5 {[%clk 0:01:06]}  f6 {[%clk 0:00:35]} 29. Rd1 {[%clk 0:01:03]}  Nd4 {[%clk 0:00:29]} 30. Bxd4 {[%clk 0:01:00]}  exd4 {[%clk 0:00:30]} 31. Rxd4 {[%clk 0:01:00]}  Rxc5 {[%clk 0:00:30]} 32. Rb7 {[%clk 0:00:54]}  Rc1+ {[%clk 0:00:26]} 33. Kf2 {[%clk 0:00:54]}  R8c2+ {[%clk 0:00:26]} 34. Ke3 {[%clk 0:00:38]}  Re1+ {[%clk 0:00:22]} 35. Kf4 {[%clk 0:00:33]}  Rxg2 {[%clk 0:00:22]} 36. Rd6 {[%clk 0:00:30]}  Rxh2 {[%clk 0:00:17]} 37. Rxa6 {[%clk 0:00:27]}  Rg2 {[%clk 0:00:18]} 38. Ra5 {[%clk 0:00:18]}  h4 {[%clk 0:00:14]} 39. Rh5 {[%clk 0:00:18]}  Re8 {[%clk 0:00:10]} 40. a5 {[%clk 0:00:15]}  Ra8 {[%clk 0:00:09]} 41. Ke3 {[%clk 0:00:11]}  Re8+ {[%clk 0:00:05]} 42. Kd3 {[%clk 0:00:11]}  Rg3 {[%clk 0:00:05]} 43. Rxh4 {[%clk 0:00:09]}  Rxf3+ {[%clk 0:00:05]} 44. Kc4 {[%clk 0:00:10]}  Ra3 {[%clk 0:00:03]} 45. Kb4 {[%clk 0:00:07]}  Ra1 {[%clk 0:00:03]} 46. Rb6 {[%clk 0:00:05]}  Ra8 {[%clk 0:00:02]} 47. Rh5 {[%clk 0:00:02]}  Rb1+ {[%clk 0:00:03]} 48. Kc4 {[%clk 0:00:03]}  Rxa5 {[%clk 0:00:03]} 49. Rxb1 {[%clk 0:00:01]}  Rxh5 {[%clk 0:00:02]} 50. Rb8+ {[%clk 0:00:02]}  Kh7 {[%clk 0:00:03]} 51. Kd4 {[%clk 0:00:03]}  Rh4+ {[%clk 0:00:03]} 52. Kd3 {[%clk 0:00:03]}  Rh5 {[%clk 0:00:04]} 53. Ke3 {[%clk 0:00:04]}  Kg6 {[%clk 0:00:05]} 54. Kf3 {[%clk 0:00:05]}  Re5 {[%clk 0:00:05]} 55. Kg4 {[%clk 0:00:06]}  Rg5+ {[%clk 0:00:06]} 56. Kf4 {[%clk 0:00:06]}  Rf5+ {[%clk 0:00:06]} 57. Kg4 {[%clk 0:00:07]}  Rh5 {[%clk 0:00:06]} 58. Rb6 {[%clk 0:00:06]}  Rg5+ {[%clk 0:00:07]} 59. Kf4 {[%clk 0:00:07]}  Re5 {[%clk 0:00:06]} 60. Kg4 {[%clk 0:00:07]}  Kh6 {[%clk 0:00:06]} 61. Rb8 {[%clk 0:00:07]}  Re4+ {[%clk 0:00:06]} 62. Kf5 {[%clk 0:00:07]}  Re5+ {[%clk 0:00:07]} 63. Kg4 {[%clk 0:00:07]}  Ra5 {[%clk 0:00:07]} 64. Rb6 {[%clk 0:00:06]}  Kg6 {[%clk 0:00:06]} 65. Rc6 {[%clk 0:00:06]}  Ra4+ {[%clk 0:00:06]} 66. Kg3 {[%clk 0:00:07]}  Kg5 {[%clk 0:00:06]} 67. Rc7 {[%clk 0:00:06]}  g6 {[%clk 0:00:06]} 68. Kf3 {[%clk 0:00:07]}  Ra3+ {[%clk 0:00:06]} 69. Rc3 {[%clk 0:00:08]}  Rxc3+ {[%clk 0:00:06]} 0-1


[Site "https://www.chess.com"]

[Event "Titled Tuesday Blitz January 31 Late 2023"]
[White "Avila Pavas, Santiago"]
[Black "Andreikin, Dmitry"]
[WhiteFideId "4437128"]
[BlackFideId "4158814"]
[WhiteElo "2522"]
[BlackElo "2729"]
[Result "0-1"]
[Round "03"]
[TimeControl "180+2"]
[Date "2023.01.31"]
[WhiteClock "0:00:43"]
[BlackClock "0:01:46"]

1. d4 {[%clk 0:03:00]}  d5 {[%clk 0:02:59]} 2. Bf4 {[%clk 0:03:00]}  Nf6 {[%clk 0:02:58]} 3. e3 {[%clk 0:03:01]}  g6 {[%clk 0:02:55]} 4. Nf3 {[%clk 0:03:01]}  Bg7 {[%clk 0:02:55]} 5. Nbd2 {[%clk 0:03:01]}  O-O {[%clk 0:02:56]} 6. Bd3 {[%clk 0:03:02]}  c5 {[%clk 0:02:54]} 7. c3 {[%clk 0:03:02]}  Nc6 {[%clk 0:02:54]} 8. O-O {[%clk 0:02:53]}  Nh5 {[%clk 0:02:52]} 9. Bg5 {[%clk 0:02:53]}  h6 {[%clk 0:02:52]} 10. Bh4 {[%clk 0:02:53]}  Qb6 {[%clk 0:02:41]} 11. Rb1 {[%clk 0:02:39]}  cxd4 {[%clk 0:02:37]} 12. cxd4 {[%clk 0:02:27]}  Nb4 {[%clk 0:02:37]} 13. Be2 {[%clk 0:02:28]}  Bf5 {[%clk 0:02:34]} 14. Ra1 {[%clk 0:02:26]}  Bc2 {[%clk 0:02:33]} 15. Qc1 {[%clk 0:02:18]}  Rfc8 {[%clk 0:02:33]} 16. Bxe7 {[%clk 0:02:11]}  Nd3 {[%clk 0:02:33]} 17. Bxd3 {[%clk 0:02:06]}  Bxd3 {[%clk 0:02:33]} 18. Bc5 {[%clk 0:02:06]}  Qa6 {[%clk 0:02:34]} 19. Re1 {[%clk 0:02:04]}  b6 {[%clk 0:02:34]} 20. b4 {[%clk 0:02:03]}  bxc5 {[%clk 0:02:27]} 21. bxc5 {[%clk 0:02:04]}  Rab8 {[%clk 0:02:27]} 22. Qc3 {[%clk 0:02:00]}  Nf6 {[%clk 0:02:26]} 23. Ne5 {[%clk 0:01:59]}  Bf5 {[%clk 0:02:24]} 24. a4 {[%clk 0:01:49]}  Ne4 {[%clk 0:02:24]} 25. Nxe4 {[%clk 0:01:49]}  Bxe4 {[%clk 0:02:24]} 26. Nf3 {[%clk 0:01:36]}  g5 {[%clk 0:02:21]} 27. Nd2 {[%clk 0:01:35]}  Bg6 {[%clk 0:02:21]} 28. Rec1 {[%clk 0:01:26]}  f5 {[%clk 0:02:19]} 29. Nb3 {[%clk 0:01:25]}  f4 {[%clk 0:02:17]} 30. Qa5 {[%clk 0:01:23]}  Qe2 {[%clk 0:02:05]} 31. Re1 {[%clk 0:01:12]}  Qc2 {[%clk 0:02:05]} 32. Nd2 {[%clk 0:01:12]}  fxe3 {[%clk 0:02:02]} 33. fxe3 {[%clk 0:01:13]}  Rb2 {[%clk 0:02:02]} 34. Re2 {[%clk 0:01:07]}  Qd3 {[%clk 0:01:57]} 35. Rae1 {[%clk 0:01:03]}  Re8 {[%clk 0:01:57]} 36. Kf2 {[%clk 0:00:46]}  Rc2 {[%clk 0:01:49]} 37. Nf3 {[%clk 0:00:43]}  Qxe3+ {[%clk 0:01:46]} 0-1


[Site "https://www.chess.com"]

[Event "Titled Tuesday Blitz January 31 Late 2023"]
[White "Duda, Jan-Krzysztof"]
[Black "Salimova, Nurgyul"]
[WhiteFideId "1170546"]
[BlackFideId "2915138"]
[WhiteElo "2724"]
[BlackElo "2391"]
[Result "1-0"]
[Round "03"]
[TimeControl "180+2"]
[Date "2023.01.31"]
[WhiteClock "0:01:58"]
[BlackClock "0:00:13"]

1. d4 {[%clk 0:03:00]}  Nf6 {[%clk 0:02:59]} 2. Bg5 {[%clk 0:03:01]}  d5 {[%clk 0:02:57]} 3. Bxf6 {[%clk 0:03:00]}  exf6 {[%clk 0:02:57]} 4. e3 {[%clk 0:03:00]}  c6 {[%clk 0:02:57]} 5. g3 {[%clk 0:02:59]}  Bd6 {[%clk 0:02:50]} 6. Bg2 {[%clk 0:02:59]}  f5 {[%clk 0:02:47]} 7. Ne2 {[%clk 0:02:59]}  Nd7 {[%clk 0:02:45]} 8. b3 {[%clk 0:02:59]}  Nf6 {[%clk 0:02:45]} 9. c4 {[%clk 0:02:59]}  Be6 {[%clk 0:02:44]} 10. Qc2 {[%clk 0:02:59]}  g6 {[%clk 0:02:40]} 11. O-O {[%clk 0:02:54]}  h5 {[%clk 0:02:34]} 12. h4 {[%clk 0:02:54]}  Kf8 {[%clk 0:02:30]} 13. Nd2 {[%clk 0:02:43]}  Kg7 {[%clk 0:02:25]} 14. a3 {[%clk 0:02:41]}  a5 {[%clk 0:02:19]} 15. Rfc1 {[%clk 0:02:40]}  Qe7 {[%clk 0:02:16]} 16. Qb2 {[%clk 0:02:39]}  Ng4 {[%clk 0:01:35]} 17. Nf3 {[%clk 0:02:38]}  a4 {[%clk 0:01:28]} 18. b4 {[%clk 0:02:27]}  dxc4 {[%clk 0:01:28]} 19. d5+ {[%clk 0:02:27]}  Kh6 {[%clk 0:01:13]} 20. dxe6 {[%clk 0:02:26]}  Qxe6 {[%clk 0:01:05]} 21. Ned4 {[%clk 0:02:26]}  Qe7 {[%clk 0:01:01]} 22. Qd2 {[%clk 0:02:21]}  Kg7 {[%clk 0:00:43]} 23. Rxc4 {[%clk 0:02:20]}  Rad8 {[%clk 0:00:43]} 24. Qc3 {[%clk 0:02:16]}  Nf6 {[%clk 0:00:42]} 25. Bh3 {[%clk 0:02:01]}  Kh7 {[%clk 0:00:15]} 26. Bxf5 {[%clk 0:01:57]}  gxf5 {[%clk 0:00:13]} 27. Nxf5 {[%clk 0:01:58]} 1-0


[Site "https://www.chess.com"]

[Event "Titled Tuesday Blitz January 31 Late 2023"]
[White "Deac, Bogdan-Daniel"]
[Black "Karolczuk, Iwo"]
[WhiteFideId "1226380"]
[BlackFideId "21816972"]
[WhiteElo "2700"]
[BlackElo "2343"]
[Result "1-0"]
[Round "03"]
[TimeControl "180+2"]
[Date "2023.01.31"]
[WhiteClock "0:01:33"]
[BlackClock "0:01:30"]

1. b3 {[%clk 0:03:00]}  e5 {[%clk 0:02:59]} 2. Bb2 {[%clk 0:03:00]}  Nc6 {[%clk 0:02:59]} 3. Nf3 {[%clk 0:03:01]}  e4 {[%clk 0:02:57]} 4. Nd4 {[%clk 0:03:01]}  Qf6 {[%clk 0:02:41]} 5. e3 {[%clk 0:02:44]}  Bc5 {[%clk 0:02:40]} 6. c3 {[%clk 0:02:27]}  Nge7 {[%clk 0:02:38]} 7. d3 {[%clk 0:02:23]}  exd3 {[%clk 0:02:32]} 8. Bxd3 {[%clk 0:02:24]}  O-O {[%clk 0:02:26]} 9. Qh5 {[%clk 0:02:15]}  g6 {[%clk 0:01:39]} 10. Qxc5 {[%clk 0:02:12]}  Ne5 {[%clk 0:01:39]} 11. Be2 {[%clk 0:01:54]}  b6 {[%clk 0:01:39]} 12. Qa3 {[%clk 0:01:36]}  c5 {[%clk 0:01:39]} 13. Nf3 {[%clk 0:01:34]}  Bb7 {[%clk 0:01:30]} 14. Nbd2 {[%clk 0:01:33]} 1-0


[Site "https://www.chess.com"]

[Event "Titled Tuesday Blitz January 31 Late 2023"]
[White "Indjic, Aleksandar"]
[Black "Trost, Edvin"]
[WhiteFideId "911925"]
[BlackFideId "1729519"]
[WhiteElo "2618"]
[BlackElo "2399"]
[Result "1-0"]
[Round "03"]
[TimeControl "180+2"]
[Date "2023.01.31"]
[WhiteClock "0:00:26"]
[BlackClock "0:00:01"]

1. d4 {[%clk 0:03:00]}  Nf6 {[%clk 0:02:59]} 2. Nf3 {[%clk 0:03:00]}  b6 {[%clk 0:02:58]} 3. Bg5 {[%clk 0:03:01]}  Bb7 {[%clk 0:02:57]} 4. Nbd2 {[%clk 0:02:58]}  g6 {[%clk 0:02:52]} 5. e3 {[%clk 0:02:54]}  Bg7 {[%clk 0:02:52]} 6. Bd3 {[%clk 0:02:55]}  d5 {[%clk 0:02:52]} 7. a4 {[%clk 0:02:52]}  O-O {[%clk 0:02:49]} 8. c3 {[%clk 0:02:51]}  c5 {[%clk 0:02:49]} 9. h4 {[%clk 0:02:45]}  Nc6 {[%clk 0:02:46]} 10. Bf4 {[%clk 0:02:38]}  Ng4 {[%clk 0:02:43]} 11. h5 {[%clk 0:02:27]}  e5 {[%clk 0:02:42]} 12. dxe5 {[%clk 0:02:27]}  Ngxe5 {[%clk 0:02:43]} 13. Nxe5 {[%clk 0:02:23]}  Nxe5 {[%clk 0:02:44]} 14. Bxe5 {[%clk 0:02:19]}  Bxe5 {[%clk 0:02:44]} 15. hxg6 {[%clk 0:02:19]}  hxg6 {[%clk 0:02:37]} 16. Qg4 {[%clk 0:02:14]}  Kg7 {[%clk 0:02:36]} 17. Nf3 {[%clk 0:02:00]}  Qf6 {[%clk 0:02:27]} 18. Nxe5 {[%clk 0:01:25]}  Qxe5 {[%clk 0:02:28]} 19. O-O-O {[%clk 0:01:25]}  Bc6 {[%clk 0:02:24]} 20. Bc2 {[%clk 0:01:19]}  Rh8 {[%clk 0:02:23]} 21. Qf3 {[%clk 0:01:10]}  Rac8 {[%clk 0:01:58]} 22. Rxh8 {[%clk 0:01:08]}  Rxh8 {[%clk 0:01:59]} 23. c4 {[%clk 0:01:09]}  Rd8 {[%clk 0:01:44]} 24. Bb3 {[%clk 0:01:09]}  Ba8 {[%clk 0:01:01]} 25. cxd5 {[%clk 0:01:08]}  c4 {[%clk 0:01:01]} 26. Bxc4 {[%clk 0:01:06]}  Rc8 {[%clk 0:01:01]} 27. Rd4 {[%clk 0:01:07]}  a6 {[%clk 0:00:37]} 28. Kb1 {[%clk 0:01:05]}  b5 {[%clk 0:00:37]} 29. axb5 {[%clk 0:01:04]}  axb5 {[%clk 0:00:38]} 30. Bb3 {[%clk 0:01:00]}  Qc7 {[%clk 0:00:34]} 31. Rd1 {[%clk 0:01:00]}  Qd6 {[%clk 0:00:29]} 32. Qe4 {[%clk 0:01:00]}  Bb7 {[%clk 0:00:27]} 33. Qd4+ {[%clk 0:01:00]}  f6 {[%clk 0:00:25]} 34. f4 {[%clk 0:00:59]}  Ra8 {[%clk 0:00:25]} 35. g3 {[%clk 0:00:56]}  b4 {[%clk 0:00:23]} 36. e4 {[%clk 0:00:56]}  Qa6 {[%clk 0:00:18]} 37. e5 {[%clk 0:00:51]}  Bc8 {[%clk 0:00:19]} 38. e6 {[%clk 0:00:50]}  Bb7 {[%clk 0:00:14]} 39. g4 {[%clk 0:00:40]}  Qa1+ {[%clk 0:00:08]} 40. Kc2 {[%clk 0:00:40]}  Qa6 {[%clk 0:00:08]} 41. g5 {[%clk 0:00:34]}  Rf8 {[%clk 0:00:04]} 42. Kb1 {[%clk 0:00:31]}  Qd6 {[%clk 0:00:02]} 43. Re1 {[%clk 0:00:28]}  Ba6 {[%clk 0:00:01]} 44. e7 {[%clk 0:00:28]}  Re8 {[%clk 0:00:01]} 45. Re6 {[%clk 0:00:26]} 1-0


[Site "https://www.chess.com"]